fUST/lending_fUST_20250211
["ID","MTS","AMOUNT","RATE_DAILY","PERIOD"]
[352632352,1739209843333,-7678.08,0.0001315,2]
[352632354,1739209843343,-500.0,0.0001315,2]
[352632355,1739209843352,-352.876726,0.0001315,2]
[352632356,1739209843362,-526.54,0.0001315,2]
[352632357,1739209843372,-352.876726,0.0001315,2]
[352632358,1739209843381,-420.1063667,0.0001315,2]
[352632359,1739209843390,-502.34,0.0001315,2]
[352632360,1739209843399,-711.8,0.0001315,2]
[352632361,1739209843409,-1559.31,0.0001315,2]
[352632362,1739209843419,-272.22,0.0001315,2]
[352632363,1739209843428,-5749.49,0.0001315,2]
[352632364,1739209843438,-589.11,0.0001315,2]
[352632366,1739209843447,-565.89,0.0001315,2]
[352632367,1739209843456,-151.0,0.0001315,2]
[352632369,1739209843465,-607.83,0.0001315,2]
[352632371,1739209843476,-1082.83,0.0001315,2]
[352632373,1739209843486,-663.82,0.0001315,2]
[352632375,1739209843496,-500.0,0.0001315,2]
[352632377,1739209843506,-1332.67,0.0001315,2]
[352632379,1739209843515,-3054.6,0.0001315,2]
[352632381,1739209843525,-1339.57,0.0001315,2]
[352632383,1739209843536,-207.185772,0.0001315,2]
[352632385,1739209843546,-207.185772,0.0001315,2]
[352632387,1739209843555,-500.0,0.0001315,2]
[352632389,1739209843564,-619.65,0.0001315,2]
[352632391,1739209843573,-151.0,0.0001315,2]
[352632393,1739209843583,-1100.39,0.0001315,2]
[352632395,1739209843592,-1611.17,0.0001315,2]
[352632397,1739209843602,-748.63,0.0001315,2]
[352632400,1739209843611,-5122.84,0.0001315,2]
[352632402,1739209843621,-322.86,0.0001315,2]
[352632404,1739209843631,-500.0,0.00013287,2]
[352632405,1739209843641,-500.0,0.00013287,2]
[352632407,1739209843650,-500.0,0.00013287,2]
[352632410,1739209843659,-500.0,0.00013287,2]
[352632412,1739209843668,-500.0,0.00013287,2]
[352632422,1739209843678,-500.0,0.00013287,2]
[352632424,1739209843765,-500.0,0.00013287,2]
[352632426,1739209843775,-7678.08,0.00013287,2]
[352632428,1739209843784,-500.0,0.00013287,2]
[352632430,1739209843793,-526.54,0.00013287,2]
[352632432,1739209843803,-502.34,0.00013287,2]
[352632434,1739209843812,-711.8,0.00013287,2]
[352632436,1739209843821,-1559.31,0.00013287,2]
[352632438,1739209843831,-5749.49,0.00013287,2]
[352632440,1739209843840,-589.11,0.00013287,2]
[352632442,1739209843849,-565.89,0.00013287,2]
[352632444,1739209843858,-607.83,0.00013287,2]
[352632446,1739209843867,-1082.83,0.00013287,2]
[352632448,1739209843876,-663.82,0.00013287,2]
[352632450,1739209843886,-171.7,0.00013287,2]
[352632452,1739209843895,-1332.67,0.00013287,2]
[352632454,1739209843905,-3054.6,0.00013287,2]
[352632456,1739209843914,-1339.57,0.00013287,2]
[352632458,1739209843924,-500.0,0.00013287,2]
[352632460,1739209843934,-619.65,0.00013287,2]
[352632462,1739209843944,-1100.39,0.00013287,2]
[352632464,1739209843953,-1611.17,0.00013287,2]
[352632466,1739209843963,-748.63,0.00013287,2]
[352632468,1739209843972,-5122.84,0.00013287,2]
[352632470,1739209843981,-500.0,0.00013385,2]
[352632472,1739209843990,-151.0,0.000134,2]
[352632474,1739209844000,-500.0,0.00013424,2]
[352632476,1739209844009,-500.0,0.00013424,2]
[352632478,1739209844018,-500.0,0.00013424,2]
[352632480,1739209844027,-325.98,0.00013424,2]
[352632482,1739209844036,-239.75,0.00013424,2]
[352632484,1739209844046,-500.0,0.00013424,2]
[352632486,1739209844055,-554.28,0.00013424,2]
[352632488,1739209844064,-7678.08,0.00013424,2]
[352632490,1739209844074,-500.0,0.00013424,2]
[352632492,1739209844084,-526.54,0.00013424,2]
[352632494,1739209844094,-502.34,0.00013424,2]
[352632496,1739209844103,-711.8,0.00013424,2]
[352632498,1739209844112,-1559.31,0.00013424,2]
[352632500,1739209844121,-5749.49,0.00013424,2]
[352632502,1739209844130,-589.11,0.00013424,2]
[352632504,1739209844140,-565.89,0.00013424,2]
[352632506,1739209844149,-607.83,0.00013424,2]
[352632508,1739209844158,-1082.83,0.00013424,2]
[352632510,1739209844168,-663.82,0.00013424,2]
[352632512,1739209844177,-1332.67,0.00013424,2]
[352632514,1739209844186,-3054.6,0.00013424,2]
[352632516,1739209844195,-1339.57,0.00013424,2]
[352632518,1739209844204,-500.0,0.00013424,2]
[352632520,1739209844213,-619.65,0.00013424,2]
[352632522,1739209844223,-256.385814,0.00013424,2]
[352632524,1739209844233,-1100.39,0.00013424,2]
[352632526,1739209844244,-1611.17,0.00013424,2]
[352632528,1739209844254,-748.63,0.00013424,2]
[352632530,1739209844263,-5122.84,0.00013424,2]
[352632533,1739209844275,-151.0,0.0001356,2]
[352632535,1739209844285,-500.0,0.00013561,2]
[352632537,1739209844295,-500.0,0.00013561,2]
[352632539,1739209844303,-436.0,0.00013561,2]
[352632541,1739209844315,-500.0,0.00013561,2]
[352632543,1739209844325,-193.292798,0.00013561,2]
[352632545,1739209844336,-193.292798,0.00013561,2]
[352632546,1739209844345,-151.0,0.00013561,2]
[352632548,1739209844354,-151.0,0.00013561,2]
[352632550,1739209844365,-7678.08,0.00013561,2]
[352632552,1739209844374,-500.0,0.00013561,2]
[352632554,1739209844384,-526.54,0.00013561,2]
[352632556,1739209844394,-502.34,0.00013561,2]
[352632558,1739209844404,-711.8,0.00013561,2]
[352632560,1739209844413,-1559.31,0.00013561,2]
[352632563,1739209844423,-5749.49,0.00013561,2]
[352632565,1739209844432,-589.11,0.00013561,2]
[352632567,1739209844442,-151.0,0.00013561,2]
[352632569,1739209844451,-565.89,0.00013561,2]
[352632571,1739209844461,-712.760873,0.00013561,2]
[352632573,1739209844470,-712.760873,0.00013561,2]
[352632575,1739209844480,-607.83,0.00013561,2]
[352632577,1739209844490,-151.0,0.00013561,2]
[352632579,1739209844500,-1082.83,0.00013561,2]
[352632581,1739209844509,-316.873002,0.00013561,2]
[352632583,1739209844519,-316.873002,0.00013561,2]
[352632585,1739209844528,-663.82,0.00013561,2]
[352632587,1739209844537,-1332.67,0.00013561,2]
[352632589,1739209844546,-3054.6,0.00013561,2]
[352632591,1739209844555,-1339.57,0.00013561,2]
[352632593,1739209844565,-207.185772,0.00013561,2]
[352632595,1739209844574,-207.185772,0.00013561,2]
[352632597,1739209844588,-500.0,0.00013561,2]
[352632599,1739209844597,-619.65,0.00013561,2]
[352632601,1739209844606,-1100.39,0.00013561,2]
[352632603,1739209844616,-1611.17,0.00013561,2]
[352632605,1739209844625,-748.63,0.00013561,2]
[352632607,1739209844634,-5122.84,0.00013561,2]
[352632609,1739209844644,-500.0,0.00013698,2]
[352632611,1739209844655,-500.0,0.00013698,2]
[352632613,1739209844664,-500.0,0.00013698,2]
[352632615,1739209844673,-7678.08,0.00013698,2]
[352632617,1739209844683,-500.0,0.00013698,2]
[352632619,1739209844692,-526.54,0.00013698,2]
[352632621,1739209844702,-502.34,0.00013698,2]
[352632623,1739209844711,-711.8,0.00013698,2]
[352632625,1739209844719,-1559.31,0.00013698,2]
[352632627,1739209844729,-5749.49,0.00013698,2]
[352632629,1739209844738,-589.11,0.00013698,2]
[352632631,1739209844747,-565.89,0.00013698,2]
[352632633,1739209844757,-607.83,0.00013698,2]
[352632635,1739209844767,-1082.83,0.00013698,2]
[352632637,1739209844775,-663.82,0.00013698,2]
[352632639,1739209844784,-1332.67,0.00013698,2]
[352632641,1739209844794,-3054.6,0.00013698,2]
[352632643,1739209844803,-1339.57,0.00013698,2]
[352632645,1739209844812,-500.0,0.00013698,2]
[352632647,1739209844821,-619.65,0.00013698,2]
[352632648,1739209844831,-1100.39,0.00013698,2]
[352632649,1739209844842,-1611.17,0.00013698,2]
[352632650,1739209844851,-748.63,0.00013698,2]
[352632651,1739209844861,-5122.84,0.00013698,2]
[352632652,1739209844870,-230.468471,0.00013699,2]
[352632653,1739209844880,-150.0,0.00013795,2]
[352632654,1739209844890,-538.973,0.00013795,2]
[352632655,1739209844899,-1969.0,0.00013795,2]
[352632656,1739209844908,-2294.0,0.00013795,2]
[352632657,1739209844918,-151.0,0.000138,2]
[352632659,1739209844927,-500.0,0.00013835,2]
[352632661,1739209844936,-616.32,0.00013835,2]
[352632663,1739209844945,-500.0,0.00013835,2]
[352632665,1739209844955,-7678.08,0.00013835,2]
[352632667,1739209844964,-500.0,0.00013835,2]
[352632669,1739209844974,-526.54,0.00013835,2]
[352632671,1739209844983,-502.34,0.00013835,2]
[352632673,1739209844993,-711.8,0.00013835,2]
[352632675,1739209845002,-1559.31,0.00013835,2]
[352632677,1739209845012,-5749.49,0.00013835,2]
[352632679,1739209845021,-589.11,0.00013835,2]
[352632681,1739209845030,-565.89,0.00013835,2]
[352632683,1739209845040,-607.83,0.00013835,2]
[352632685,1739209845049,-1082.83,0.00013835,2]
[352632687,1739209845060,-663.82,0.00013835,2]
[352632689,1739209845070,-1332.67,0.00013835,2]
[352632691,1739209845080,-3054.6,0.00013835,2]
[352632693,1739209845090,-1339.57,0.00013835,2]
[352632695,1739209845099,-327.22,0.00013835,2]
[352632697,1739209845109,-619.65,0.00013835,2]
[352632699,1739209845118,-1100.39,0.00013835,2]
[352632701,1739209845127,-1611.17,0.00013835,2]
[352632703,1739209845136,-748.63,0.00013835,2]
[352632705,1739209845146,-5122.84,0.00013835,2]
[352632707,1739209845155,-182.156,0.000139,2]
[352632709,1739209845165,-176.57946952,0.00013953,2]
[352632711,1739209845174,-500.0,0.00013972,2]
[352632713,1739209845184,-500.0,0.00013972,2]
[352632715,1739209845193,-7678.08,0.00013972,2]
[352632717,1739209845202,-500.0,0.00013972,2]
[352632719,1739209845211,-526.54,0.00013972,2]
[352632721,1739209845221,-502.34,0.00013972,2]
[352632723,1739209845230,-711.8,0.00013972,2]
[352632725,1739209845242,-1559.31,0.00013972,2]
[352632726,1739209845251,-5749.49,0.00013972,2]
[352632728,1739209845261,-589.11,0.00013972,2]
[352632731,1739209845270,-565.89,0.00013972,2]
[352632733,1739209845281,-607.83,0.00013972,2]
[352632735,1739209845290,-1082.83,0.00013972,2]
[352632737,1739209845301,-663.82,0.00013972,2]
[352632739,1739209845311,-1332.67,0.00013972,2]
[352632741,1739209845321,-3054.6,0.00013972,2]
[352632743,1739209845331,-1339.57,0.00013972,2]
[352632745,1739209845341,-207.185772,0.00013972,2]
[352632746,1739209845350,-207.185772,0.00013972,2]
[352632747,1739209845360,-619.65,0.00013972,2]
[352632748,1739209845369,-1100.39,0.00013972,2]
[352632749,1739209845378,-1611.17,0.00013972,2]
[352632750,1739209845388,-748.63,0.00013972,2]
[352632751,1739209845398,-5122.84,0.00013972,2]
[352632752,1739209845408,-530.0,0.00014,4]
[352632753,1739209845418,-152.0,0.00014042,2]
[352632754,1739209845427,-154.0,0.00014042,2]
[352632755,1739209845436,-154.0,0.00014042,2]
[352632756,1739209845445,-154.0,0.00014042,2]
[352632757,1739209845455,-497.06,0.00014109,2]
[352632758,1739209845464,-394.79,0.00014109,2]
[352632759,1739209845473,-151.0,0.00014109,2]
[352632760,1739209845482,-185.217973,0.00014109,2]
[352632761,1739209845492,-7678.17000001,0.00014109,2]
[352632762,1739209845501,-210.35,0.00014109,2]
[352632763,1739209845511,-352.876726,0.00014109,2]
[352632764,1739209845520,-526.62,0.00014109,2]
[352632765,1739209845530,-352.876726,0.00014109,2]
[352632766,1739209845539,-502.41,0.00014109,2]
[352632767,1739209845548,-711.93,0.00014109,2]
[352632768,1739209845556,-1559.34,0.00014109,2]
[352632769,1739209845566,-1818.5354997,0.00014109,2]
[352632770,1739209845586,-3931.1645003,0.00014109,2]
[352632771,1739209845595,-589.27,0.00014109,2]
[352632772,1739209845604,-566.11,0.00014109,2]
[352632773,1739209845613,-151.0,0.00014109,2]
[352632774,1739209845623,-607.89,0.00014109,2]
[352632775,1739209845632,-1083.06,0.00014109,2]
[352632776,1739209845642,-663.91,0.00014109,2]
[352632777,1739209845651,-1332.83,0.00014109,2]
[352632778,1739209845660,-3054.75,0.00014109,2]
[352632779,1739209845670,-1339.65,0.00014109,2]
[352632780,1739209845679,-619.77,0.00014109,2]
[352632782,1739209845758,-1100.49,0.00014109,2]
[352632783,1739209845775,-1611.22,0.00014109,2]
[352632784,1739209845784,-748.65,0.00014109,2]
[352632785,1739209845795,-5122.95,0.00014109,2]
[352632786,1739209845804,-151.0,0.000142,2]
[352632787,1739209845813,-154.011,0.0001425,2]
[352632789,1739209845823,-660.48151942,0.00014392,2]
[352632790,1739209845833,-660.48151942,0.00014492,2]
[352632791,1739209845843,-151.0,0.000145,2]
[352632792,1739209845853,-151.0,0.000145,2]
[352632793,1739209845862,-151.0,0.000145,2]
[352632794,1739209845871,-1564.41,0.000145,2]
[352632795,1739209845881,-473.91370712,0.00014569,2]
[352632796,1739209845890,-660.48151942,0.00014592,2]
[352632797,1739209845900,-151.0,0.000146,2]
[352632798,1739209845910,-13267.29691025,0.00014622,2]
[352632799,1739209845919,-712.760873,0.00014676,2]
[352632800,1739209845929,-712.760873,0.00014676,2]
[352632801,1739209845939,-316.873002,0.00014676,2]
[352632802,1739209845949,-316.873002,0.00014676,2]
[352632803,1739209845958,-660.48151942,0.00014692,2]
[352632804,1739209845969,-151.0,0.000147,2]
[352632805,1739209845978,-369.92678193,0.00014721,2]
[352632806,1739209845988,-660.48151942,0.00014792,2]
[352632807,1739209845998,-170.4501297,0.00014849,2]
[352632808,1739209846008,-660.48151942,0.00014892,2]
[352632810,1739209846018,-654.02682813,0.000149,2]
[352632811,1739209846027,-185.94,0.00014942,2]
[352632812,1739209846037,-202.26,0.00014942,2]
[352632813,1739209846046,-500.0,0.00014973,2]
[352632814,1739209846055,-500.0,0.00014973,2]
[352632815,1739209846064,-500.0,0.00014973,2]
[352632816,1739209846074,-660.48151942,0.00014992,2]
[352632817,1739209846084,-593.48253987,0.00014999,2]
[352632818,1739209846093,-2208.85442188,0.00015,5]
[352632819,1739209846103,-158.66135811,0.00015,5]
[352632820,1739209846112,-707480.04305528,0.00015,2]
[352632821,1739209846453,-500.0,0.00012739,2]
[352632822,1739209846462,-500.0,0.00012876,2]
[352632823,1739209846472,-500.0,0.00013013,2]
[352632824,1739209846481,-254.16,0.0001315,2]
[352632825,1739209846491,-3117.98565237,0.00015,2]
[352632826,1739209846502,-7996.69424651,0.00015,2]
[352632827,1739209846512,-7154.55369873,0.00015,4]
[352632828,1739209846521,-162.0,0.00015,4]
[352632829,1739209846531,-162.0,0.00015,4]
[352632830,1739209846540,-162.0,0.00015,3]
[352632831,1739209846551,-162.0,0.00015,3]
[352632832,1739209846561,-25619.51,0.00015,7]
[352632834,1739209846571,-30000.0,0.00015,4]
[352632836,1739209846582,-30000.0,0.00015,4]
[352632837,1739209846592,-44775.19287544,0.00015,4]
[352632838,1739209846601,-24000.0,0.00015,7]
[352632839,1739209846611,-2000.0,0.00015,2]
[352632840,1739209846621,-4808.08044607,0.00015,2]
[352632841,1739209846630,-4309.03265286,0.00015,2]
[352632842,1739209846640,-25532.3298963,0.00015,2]
[352632843,1739209846650,-52889.57297788,0.00015,2]
[352632844,1739209846659,-299.537,0.00015,2]
[352632845,1739209846669,-151.0,0.00015,2]
[352632846,1739209846679,-151.0,0.00015,2]
[352632848,1739209846688,-151.0,0.00015,2]
[352632850,1739209846698,-151.0,0.00015,2]
[352632852,1739209846707,-151.0,0.00015,2]
[352632853,1739209846717,-293.652114,0.00015,2]
[352632854,1739209846727,-151.0,0.00015,2]
[352632856,1739209846738,-151.0,0.00015,2]
[352632858,1739209846748,-151.374975,0.00015,2]
[352632859,1739209846758,-151.0,0.00015,2]
[352632860,1739209846767,-181.228071,0.00015,2]
[352632861,1739209846777,-151.0,0.00015,2]
[352632862,1739209846786,-151.001073,0.00015,2]
[352632863,1739209846796,-246.672009,0.00015,2]
[352632864,1739209846805,-246.672009,0.00015,2]
[352632865,1739209846815,-151.0,0.00015,2]
[352632866,1739209846824,-151.0,0.00015,2]
[352632867,1739209846835,-151.0,0.00015,2]
[352632868,1739209846845,-151.0,0.00015,2]
[352632869,1739209846855,-151.0,0.00015,2]
[352632870,1739209846864,-151.0,0.00015,2]
[352632871,1739209846873,-151.0,0.00015,2]
[352632872,1739209846883,-151.0,0.00015,2]
[352632873,1739209846894,-151.0,0.00015,2]
[352632874,1739209846903,-151.0,0.00015,2]
[352632875,1739209846913,-151.0,0.00015,2]
[352632876,1739209846924,-151.0,0.00015,2]
[352632877,1739209846934,-151.0,0.00015,2]
[352632878,1739209846944,-151.0,0.00015,2]
[352632879,1739209846953,-151.0,0.00015,2]
[352632880,1739209846963,-151.0,0.00015,2]
[352632881,1739209846973,-151.0,0.00015,2]
[352632882,1739209846983,-151.0,0.00015,2]
[352632883,1739209846992,-151.0,0.00015,2]
[352632884,1739209847002,-151.0,0.00015,2]
[352632885,1739209847012,-151.0,0.00015,2]
[352632886,1739209847022,-151.0,0.00015,2]
[352632887,1739209847032,-151.0,0.00015,2]
[352632888,1739209847042,-151.0,0.00015,2]
[352632889,1739209847052,-282.978656,0.00015,2]
[352632890,1739209847063,-151.0,0.00015,2]
[352632891,1739209847073,-151.0,0.00015,2]
[352632892,1739209847084,-151.0,0.00015,2]
[352632893,1739209847093,-151.0,0.00015,2]
[352632894,1739209847103,-151.0,0.00015,2]
[352632895,1739209847112,-239.475804,0.00015,2]
[352632896,1739209847122,-151.0,0.00015,2]
[352632897,1739209847131,-151.0,0.00015,2]
[352632898,1739209847141,-155.642172,0.00015,2]
[352632899,1739209847150,-464.831782,0.00015,2]
[352632900,1739209847160,-464.831782,0.00015,2]
[352632901,1739209847170,-464.831782,0.00015,2]
[352632902,1739209847179,-464.831782,0.00015,2]
[352632903,1739209847188,-464.831782,0.00015,2]
[352632904,1739209847198,-464.831782,0.00015,2]
[352632905,1739209847207,-362.256495,0.00015,2]
[352632906,1739209847218,-362.256495,0.00015,2]
[352632907,1739209847228,-362.256495,0.00015,2]
[352632908,1739209847240,-362.256495,0.00015,2]
[352632909,1739209847250,-362.256495,0.00015,2]
[352632910,1739209847260,-362.256495,0.00015,2]
[352632911,1739209847269,-193.292798,0.00015,2]
[352632912,1739209847279,-193.292798,0.00015,2]
[352632914,1739209847289,-193.292798,0.00015,2]
[352632916,1739209847299,-193.292798,0.00015,2]
[352632919,1739209847310,-193.292798,0.00015,2]
[352632920,1739209847322,-193.292798,0.00015,2]
[352632921,1739209847333,-151.0,0.00015,2]
[352632922,1739209847342,-151.0,0.00015,2]
[352632923,1739209847352,-151.0,0.00015,2]
[352632924,1739209847361,-151.0,0.00015,2]
[352632925,1739209847371,-151.0,0.00015,2]
[352632926,1739209847381,-151.0,0.00015,2]
[352632927,1739209847390,-151.0,0.00015,2]
[352632928,1739209847400,-151.0,0.00015,2]
[352632929,1739209847410,-151.0,0.00015,2]
[352632930,1739209847419,-500.0,0.00015,2]
[352632931,1739209847429,-500.0,0.00015,2]
[352632932,1739209847439,-150.2,0.00015,2]
[352632933,1739209847449,-352.876726,0.00015,2]
[352632934,1739209847458,-352.876726,0.00015,2]
[352632935,1739209847468,-352.876726,0.00015,2]
[352632936,1739209847479,-352.876726,0.00015,2]
[352632937,1739209847488,-352.876726,0.00015,2]
[352632938,1739209847498,-352.876726,0.00015,2]
[352632939,1739209847507,-151.0,0.00015,2]
[352632940,1739209847517,-154.024592,0.00015,2]
[352632941,1739209847529,-712.760873,0.00015,2]
[352632942,1739209847539,-712.760873,0.00015,2]
[352632943,1739209847549,-712.760873,0.00015,2]
[352632944,1739209847558,-712.760873,0.00015,2]
[352632945,1739209847568,-712.760873,0.00015,2]
[352632946,1739209847578,-712.760873,0.00015,2]
[352632947,1739209847588,-151.0,0.00015,2]
[352632948,1739209847597,-151.0,0.00015,2]
[352632949,1739209847607,-151.0,0.00015,2]
[352632950,1739209847703,-316.873002,0.00015,2]
[352632951,1739209847714,-316.873002,0.00015,2]
[352632952,1739209847724,-316.873002,0.00015,2]
[352632953,1739209847734,-316.873002,0.00015,2]
[352632954,1739209847744,-316.873002,0.00015,2]
[352632955,1739209847754,-316.873002,0.00015,2]
[352632956,1739209847764,-500.0,0.00015,2]
[352632957,1739209847773,-150.2,0.00015,2]
[352632958,1739209847783,-180.708347,0.00015,4]
[352632959,1739209847793,-150.2,0.00015,2]
[352632960,1739209847803,-87.59812364,0.00015,2]
[352632961,1739209847817,-119.58764836,0.00015,2]
[352632962,1739209847827,-207.185772,0.00015,2]
[352632963,1739209847838,-207.185772,0.00015,2]
[352632964,1739209847848,-207.185772,0.00015,2]
[352632965,1739209847857,-207.185772,0.00015,2]
[352632966,1739209847866,-207.185778,0.00015,2]
[352632967,1739209847875,-500.0,0.00015,2]
[352632968,1739209847885,-150.2,0.00015,2]
[352632969,1739209847895,-166.0,0.00015068,2]
[352632970,1739209847904,-660.48151942,0.00015092,2]
[352632971,1739209847914,-654.02682813,0.00015141,2]
[352632973,1739209847923,-660.48151942,0.00015192,2]
[352632974,1739209847933,-500.0,0.00015274,2]
[352632975,1739209847943,-500.0,0.00015274,2]
[352632976,1739209847953,-500.0,0.00015274,2]
[352632977,1739209847963,-150.2,0.00015274,2]
[352632978,1739209847973,-150.2,0.00015274,2]
[352632979,1739209847982,-535.98925602,0.00015274,2]
[352632980,1739209847991,-300.29,0.00015274,2]
[352632981,1739209848001,-151.0,0.00015274,2]
[352632983,1739209848011,-163.067865,0.00015274,2]
[352632985,1739209848021,-163.067865,0.00015274,2]
[352632987,1739209848031,-660.48151942,0.00015292,2]
[352632989,1739209848042,-160.0,0.00015302,3]
[352632991,1739209848053,-151.0,0.00015321,2]
[352632992,1739209848064,-151.0,0.00015321,2]
[352632993,1739209848076,-246.672009,0.00015321,2]
[352632994,1739209848092,-246.672009,0.00015321,2]
[352632995,1739209848104,-277.201776,0.00015321,2]
[352632996,1739209848115,-151.0,0.00015321,2]
[352632997,1739209848126,-654.02682813,0.00015382,2]
[352632998,1739209848136,-660.48151942,0.00015392,2]
[352632999,1739209848148,-151.0,0.00015488,2]
[352633000,1739209848158,-151.0,0.00015488,2]
[352633001,1739209848169,-151.0,0.00015488,2]
[352633002,1739209848180,-660.48151942,0.00015492,2]
[352633003,1739209848191,-176.57946952,0.000155,2]
[352633004,1739209848202,-1998.22114958,0.000155,2]
[352633005,1739209848212,-530.0,0.000155,5]
[352633006,1739209848222,-151.0,0.000155,2]
[352633008,1739209848233,-295.932404,0.000155,2]
[352633009,1739209848246,-151.0,0.000155,2]
[352633011,1739209848256,-151.0,0.000155,2]
[352633012,1739209848266,-151.0,0.000155,2]
[352633013,1739209848278,-352.876726,0.000155,2]
[352633014,1739209848289,-352.876726,0.000155,2]
[352633015,1739209848301,-151.0,0.000155,2]
[352633016,1739209848311,-1000.0,0.00015521,2]
[352633017,1739209848323,-1000.0,0.00015521,2]
[352633018,1739209848338,-1000.0,0.00015521,2]
[352633019,1739209848348,-151.0,0.00015521,2]
[352633021,1739209848359,-712.760873,0.00015521,2]
[352633022,1739209848370,-712.760873,0.00015521,2]
[352633024,1739209848381,-316.873002,0.00015521,2]
[352633026,1739209848392,-316.873002,0.00015521,2]
[352633028,1739209848403,-500.0,0.00015548,2]
[352633029,1739209848412,-500.0,0.00015548,2]
[352633030,1739209848423,-500.0,0.00015548,2]
[352633031,1739209848435,-150.5541827,0.00015548,2]
[352633032,1739209848445,-199.59,0.00015548,2]
[352633033,1739209848456,-464.831782,0.00015548,2]
[352633034,1739209848467,-464.831782,0.00015548,2]
[352633035,1739209848479,-362.256495,0.00015548,2]
[352633036,1739209848491,-362.256495,0.00015548,2]
[352633037,1739209848501,-193.292798,0.00015548,2]
[352633038,1739209848512,-193.292798,0.00015548,2]
[352633039,1739209848523,-151.0,0.00015548,2]
[352633040,1739209848533,-151.0,0.00015548,2]
[352633041,1739209848544,-660.48151942,0.00015592,2]
[352633042,1739209848555,-654.02682813,0.00015623,2]
[352633043,1739209848565,-660.48151942,0.00015692,2]
[352633044,1739209848575,-660.48151942,0.00015792,2]
[352633045,1739209848588,-615.59501874,0.00015815,2]
[352633046,1739209848599,-151.0,0.00015821,2]
[352633047,1739209848609,-151.0,0.00015821,2]
[352633048,1739209848619,-500.0,0.00015822,2]
[352633049,1739209848629,-500.0,0.00015822,2]
[352633050,1739209848643,-500.0,0.00015822,2]
[352633051,1739209848658,-172.632684,0.00015822,2]
[352633052,1739209848672,-654.02682813,0.00015864,2]
[352633053,1739209848686,-660.48151942,0.00015892,2]
[352633054,1739209848701,-545.6936,0.00015924,2]
[352633055,1739209848715,-660.48151942,0.00015992,2]
[352633056,1739209848731,-129664.18467061,0.00016,2]
[352633057,1739209849047,-6574.61,0.00010958,2]
[352633058,1739209849059,-500.0,0.00010958,2]
[352633059,1739209849070,-6574.61,0.00011095,2]
[352633060,1739209849082,-6574.61,0.00011232,2]
[352633061,1739209849094,-6574.61,0.00011369,2]
[352633062,1739209849107,-6574.61,0.00011506,2]
[352633063,1739209849120,-6574.61,0.00011643,2]
[352633064,1739209849132,-396.0,0.00013795,2]
[352633065,1739209849144,-151.0,0.000145,2]
[352633066,1739209849157,-151.0,0.000147,2]
[352633067,1739209849177,-216378.07481602,0.00016,2]
[352633068,1739209888425,352.0,0.00016,120]